Cogmind - Beta 16 @@@ ROGUE MODE // 2025.11.14 @ 15:33:18 Player: PoggyBison Result: Destroyed by as-25744 with Assembled Maul Performance ------------- Evolutions (0) 0 Regions Visited (2) 400 Robots Destroyed (7) 35 Value Destroyed (70) 70 Prototype IDs (0) 0 Alien Tech Used (0) 0 Bonus (0) 0 TOTAL SCORE: 505 Bonus ------- None Cogmind --------- Core Integrity 0/250 Matter 298/300 Energy 82/100 System Corruption 7% Temperature Cool (20) Movement Rolling (80) Location -10/Mines Parts ------- > --- POWER (1) -------- (None) > --- PROPULSION (2) --- Wheel > --- UTILITY (2) ------ Seismic Detector > --- WEAPON (2) ------- Beam Cannon > --- INVENTORY (5) ---- Aluminum Leg Wheel Beam Cannon Peak State ------------ > --- POWER ------------ Light Ion Engine > --- PROPULSION ------- Wheel Wheel > --- UTILITY ---------- Small Storage Unit Seismic Detector > --- WEAPON ----------- Beam Cannon Beam Cannon > --- INVENTORY -------- Ion Engine Light Ion Engine Aluminum Leg Aluminum Leg Wheel Improved Terrain Scanner EM Pulse Gun Beam Cannon [Rating: 8] Favorites ----------- Power Light Ion Engine Engine Light Ion Engine Propulsion Wheel Wheel Wheel Utility Small Storage Unit Device Seismic Detector Storage Small Storage Unit Weapon Beam Cannon Energy Gun Small Laser Energy Cannon Beam Cannon Build | -11 -10 -10 ------- Run | Yrd Mat Min Slots Evolved . | . . . Power . | . . . Propulsion . | . . . Utility . | . . . Weapon . | . . . Parts Attached 12 | 7 3 2 Power 2 | 1 . 1 Engine 2 | 1 . 1 Core . | . . . Reactor . | . . . Propulsion 4 | 2 1 1 Treads . | . . . Leg . | . . . Wheel 4 | 2 1 1 Hover . | . . . Flight . | . . . Utility 2 | 2 . . Device 1 | 1 . . Storage 1 | 1 . . Processor . | . . . Hackware . | . . . Protection . | . . . Artifact . | . . . Weapon 4 | 2 2 . Energy Gun 2 | 2 . . Energy Cannon 2 | . 2 . Ballistic Gun . | . . . Ballistic Cannon . | . . . Launcher . | . . . Special Weapon . | . . . Impact Weapon . | . . . Slashing Weapon . | . . . Piercing Weapon . | . . . Special Melee Weapon . | . . . Unidentified Prototypes . | . . . Parts Lost 6 | . . 6 Power 2 | . . 2 Propulsion 2 | . . 2 Utility 1 | . . 1 Weapon 1 | . . 1 Highest Loss Streak 6 | . . 6 To Critical Strikes . | . . . Average Backups 6 | 3 7 8 Power 1 | . 2 2 Propulsion 3 | 1 4 5 Utility . | . . . Weapon . | . 1 1 Tool/Special . | . . . Unused Backups 8 | . 2 6 Power 1 | . . 1 Propulsion 4 | . . 4 Utility 1 | . 1 . Weapon 2 | . 1 1 Tool/Special . | . . . Average Slot Usage (%) 98 | . 100 89 Engine 13 | . 14 10 Wheel 27 | . 28 24 Device 14 | . 14 14 Storage 14 | . 14 14 Energy Gun 4 | . 5 . Energy Cannon 23 | . 22 24 Peak Build Rating 8 | 7 8 7 Average Rating 6 | 5 7 6 On Entrance 4 | . 7 7 Avg Prop Armor Cover (%) 11 | 11 . . Naked Turns . | . . . Heaviest Build 15 | 11 15 15 Greatest Support 26 | 20 26 26 Greatest Overweight (x) 2 | 2 . . Average Overweight (x) . | . . . Largest Inventory Capacity 8 | 8 8 8 Average Capacity 7 | 7 8 7 Most Carried 8 | 7 8 8 Average Carried 6 | 3 7 7 Final Capacity 8 | 8 8 5 Final Carried 8 | 7 8 3 Class Distribution -------------------- 100% | Mutant Dominant Class ---------------- Mutant | -10/Materials Mutant | -10/Mines Resources | -11 -10 -10 ----------- Run | Yrd Mat Min Matter Collected 293 | 260 30 3 Remotely . | . . . Salvage Created 136 | 43 78 15 Parts 12 | 7 5 . Haulers Intercepted . | . . . Recyclers Shooed . | . . . Parts Field Recycled . | . . . Retrieved Matter . | . . . Parts Self-Destructed . | . . . Prevented . | . . . Parts Restored . | . . . Kills | -11 -10 -10 ------- Run | Yrd Mat Min Combat Hostiles Destroyed 4 | . 3 1 Cannons 4 | . 3 1 Classes Destroyed 3 | 1 2 . Tunneler 2 | 2 . . Watcher 1 | . 1 . Swarmer 4 | . 3 1 Best Kill Streak 4 | 2 4 1 Combat Bots Only 3 | . 3 1 Max Kills in Single Turn 2 | 2 1 1 Gunslinging . | . . . Exploded . | . . . Melee . | . . . Uniques/NPCs Destroyed . | . . . Combat | -11 -10 -10 -------- Run | Yrd Mat Min Hostile Shots Fired 61 | . 24 37 Missed 9 | . 4 5 Hits 52 | . 20 32 Melee 11 | . . 11 Projectile 41 | . 20 21 Critical Strikes 1 | . 1 . Part Disruptions 1 | . . 1 Damage Taken 779 | . 161 618 Core 257 | . 16 241 Absorbed by Shields . | . . . Core Remaining (%) 100 | 100 . . Volleys Fired 18 | 7 8 3 Largest 2 | 2 2 2 Hottest 120 | 80 120 120 Shots Fired 36 | 14 16 6 Gun 14 | 14 . . Cannon 22 | . 16 6 Launcher . | . . . Special . | . . . Kinetic . | . . . Thermal 36 | 14 16 6 Explosive . | . . . Electromagnetic . | . . . Robot Hit Streak 3 | 3 2 2 Robot Miss Streak 3 | 2 3 2 Penetration Max . | . . . Secondary Targets . | . . . Shots Hit Robots 18 | 9 7 2 Core Hits 10 | 3 4 3 Critical Kills . | . . . Critical Parts Destroyed . | . . . Critical Strikes . | . . . Melee Attacks . | . . . Impact . | . . . Slashing . | . . . Piercing . | . . . Sneak Attacks . | . . . Combat Hostiles . | . . . Follow-up Attacks . | . . . Damage Inflicted 304 | 109 123 72 Guns 109 | 109 . . Cannons 193 | . 123 70 Explosions . | . . . Melee . | . . . Ramming 2 | . . 2 Kinetic . | . . . Thermal 302 | 109 123 70 Explosive . | . . . Electromagnetic . | . . . Impact . | . . . Slashing . | . . . Piercing . | . . . Highest Corruption 5 | . . 5 Average Corruption 5 | . . 5 Corruption Purged . | . . . Corruption Blocked . | . . . Overload Shots . | . . . Overflow Damage . | . . . Projectiles . | . . . Explosions . | . . . Melee . | . . . Knockbacks . | . . . Impact . | . . . Kinetic . | . . . Secondary . | . . . Self-Inflicted Damage . | . . . Shots . | . . . Rammed 4 | . . 4 Targets Rammed 4 | . . 4 Kicked . | . . . Crushed . | . . . Highest Temperature 260 | 108 260 80 Average Temperature 104 | 52 155 40 Received Heat Transfer 60 | . . 60 Siege Activations . | . . . Martial Activations . | . . . Shielding Activations . | . . . Robots Disrupted . | . . . Combat Hostiles . | . . . Robots Corrupted . | . . . Combat Hostiles . | . . . Parts Fried . | . . . Impact Corruptions . | . . . Robots Melted . | . . . Combat Hostiles . | . . . Parts Melted 1 | . 1 . Heat Transferred 657 | 250 259 148 Parts Sabotaged . | . . . Parts Stolen . | . . . Parts Stripped . | . . . Power Chain Reactions . | . . . Alert | -11 -10 -10 ------- Run | Yrd Mat Min Maximum Alert Level . | . . . Low Security (%) 100 | 100 100 100 Level 1 . | . . . Level 2 . | . . . Level 3 . | . . . Level 4 . | . . . Level 5 . | . . . High Security . | . . . Max Security . | . . . Peak Influence 67 | 10 67 26 Initial 6 | . . 6 Average 15 | 1 21 11 Influence Increases 112 | 10 82 20 Destroy 0b10 Robot/C 80 | . 60 20 Destroy 0b10 Robot/NC 15 | 10 5 . Destroy Leader 12 | . 12 . Successful Hack 5 | . 5 . Influence Decreases 112 | 10 65 37 Entered New Map 11 | . . 11 Time Decay 75 | 10 65 . Lost Part 6 | . . 6 Lost Ally 20 | . . 20 Squads Dispatched . | . . . Investigation . | . . . Extermination . | . . . Reinforcement . | . . . Assault . | . . . Garrison . | . . . Intercept . | . . . Searches Triggered . | . . . Construction Impeded . | . . . Haulers Reinforced . | . . . Active Scanning Responses . | . . . Cargo Convoy Interrupts . | . . . Stealth | -11 -10 -10 --------- Run | Yrd Mat Min Distress Signals 1 | . 1 . Communications Jammed . | . . . Distress Signals . | . . . Times Spotted 30 | . 8 22 Peak Tracking Total 20 | . 4 20 Tactical Retreats 1 | . . 1 Traps | -11 -10 -10 ------- Run | Yrd Mat Min Traps Triggered . | . . . Indirectly . | . . . Trap Hack Attempts . | . . . Triggered . | . . . Disarmed . | . . . Reprogrammed . | . . . Reused . | . . . Traps Extracted . | . . . Installed . | . . . Triggered . | . . . Machines | -11 -10 -10 ---------- Run | Yrd Mat Min Machines Disabled . | . . . Max in Single Turn . | . . . Machines Repaired . | . . . Machines Dismantled . | . . . Machines Sabotaged . | . . . Overloaded Fab Kills . | . . . Hacking | -11 -10 -10 --------- Run | Yrd Mat Min Machines Accessed 2 | . 2 . Terminals 2 | . 2 . Fabricators . | . . . Repair Stations . | . . . Recycling Units . | . . . Scanalyzers . | . . . Garrison Access . | . . . Total Hacks 5 | . 5 . Successful 3 | . 3 . Failed 2 | . 2 . Catastrophic . | . . . Database Lockouts . | . . . Manual . | . . . Terminals 5 | . 5 . Fabricators . | . . . Repair Stations . | . . . Recycling Units . | . . . Scanalyzers . | . . . Garrison Access . | . . . Terminal Hacks 3 | . 3 . Alert Level 1 | . 1 . Maintenance Status 1 | . 1 . Zone Layout 1 | . 1 . Fabricator Hacks . | . . . Repair Station Hacks . | . . . Recycling Unit Hacks . | . . . Scanalyzer . | . . . Garrison Access Hacks . | . . . Unauthorized Hacks . | . . . Terminals . | . . . Fabricators . | . . . Repair Stations . | . . . Recycling Units . | . . . Scanalyzers . | . . . Garrison Access . | . . . Data Cores Recovered . | . . . Used . | . . . Hacking Detections 2 | . 2 . Full Trace Events . | . . . Feedback Events . | . . . Feedback Blocked . | . . . Robot Schematics Acquired . | . . . Robots Built . | . . . Authchips . | . . . Time . | . . . Total Robot Build Rating . | . . . Part Schematics Acquired . | . . . Parts Built . | . . . Authchips . | . . . Time . | . . . Total Part Build Rating . | . . . Part Studies Acquired . | . . . Parts Repaired . | . . . Time . | . . . Parts Recycled . | . . . Recycled Matter . | . . . Retrieved Matter . | . . . Retrieved Components . | . . . Parts Scanalyzed . | . . . Part Schematics Acquired . | . . . Parts Damaged . | . . . Bothacking | -11 -10 -10 ------------ Run | Yrd Mat Min Used RIF Installer . | . . . Robots Hacked . | . . . Non-combat . | . . . Combat . | . . . Robot Hacks Applied . | . . . Relay Couplers Released . | . . . Fabnet Peak Effective % . | . . . Robots Rewired . | . . . Allies Hacked . | . . . Hacks Repelled . | . . . Allies | -11 -10 -10 -------- Run | Yrd Mat Min Total Allies 1 | . . 1 Largest Group 1 | . . 1 Highest-Rated Group 31 | . . 31 Highest-Rated Ally 31 | . . 31 Total Orders . | . . . Ally Attacks 2 | . . 2 Total Damage 20 | . . 20 Kills . | . . . Allies Corrupted . | . . . Allies Melted . | . . . Intel | -11 -10 -10 ------- Run | Yrd Mat Min Active Infowar (turns) 253 | 11 214 28 Seismic 253 | 11 214 28 Robot Analysis Total . | . . . Derelict Logs Recovered . | . . . Drone Launches . | . . . Drone Recoveries . | . . . Exploration | -11 -10 -10 ------------- Run | Yrd Mat Min Turns Passed 333 | 91 214 28 Spaces Moved 304 | 70 221 13 Core 13 | 13 . . Treads . | . . . Legs . | . . . Wheels 291 | 57 221 13 Hover . | . . . Flight . | . . . Fastest Speed 50 | 50 80 90 Average Speed 80 | 75 81 91 Slowest Speed 150 | 150 90 100 Overloaded Moves . | . . . Propulsion Burnouts . | . . . Robots Hopped . | . . . Potential Cave-ins . | . . . Cave-ins Triggered . | . . . Exploration Rate (%) 17 | 4 42 6 Regions Visited 2 Branch Regions 1 Pre-discovered Areas . | . . . Known Exits Taken . | . . . Unknown Exits Taken 2 | 1 1 . Scrap Searched . | . . . Spaces Dug . | . . . Terrain Destroyed . | . . . Melee . | . . . Projectile . | . . . AOE . | . . . Terrain Rammed . | . . . Walls Destroyed . | . . . Machines Disabled . | . . . Actions | -11 -10 -10 --------- Run | Yrd Mat Min Total 352 | 90 239 23 Wait 3 | . 2 1 Move 302 | 69 220 13 Hop . | . . . Pick Up 10 | 7 3 . Fast Attach 7 | 7 . . Attach 2 | . . 2 Detach . | . . . Swap 3 | . 3 . Drop 3 | . 3 . Fire 18 | 7 8 3 Melee . | . . . Ram 4 | . . 4 Kick . | . . . Crush . | . . . Escape Stasis . | . . . Rewire . | . . . Trap . | . . . Miscellaneous . | . . . Route ------- -11/Scrapyard -10/Materials -10/Mines History --------- Turn | Location | Event 28 | -11/Scrapyard | Discovered new exit (range 13) 92 | -11/Scrapyard | Entered Materials 299 | -10/Materials | Discovered new exit (range 9) 300 | -10/Materials | Build established: Mutant 306 | -10/Materials | Entered Mines 307 | -10/Mines | Assembled infested the area 311 | -10/Mines | Escorted by a lone wolf Derelict 320 | -10/Mines | Met a Derelict bent on vengeance 330 | -10/Mines | Core integrity fell below 50% 334 | -10/Mines | Core integrity fell below 20% 334 | -10/Mines | Destroyed by as-25744 with Assembled Maul Last Messages --------------- 00308_ S-10 Pest destroyed. 00311_ DS-RLY(g): "Well, at least you make a good diversion. I'll return the favor and help see you out of these parts." 00316_ DS-RLY(g): "Mission, incomplete...*fzzt*" 00316_ DS-RLY(g) destroyed. 00322_ Knocked back. 00324_ Beam Cannon destroyed. 00326_ Slammed into as-28359. 00327_ Lgt. Ion Engine destroyed. 00327_ Slammed into as-28359. 00328_ Wheel destroyed. 00330_ Sml. Storage Unit destroyed. 00330_ Slammed into as-85656. 00333_ Com. Wheel destroyed. 00333_ System corrupted by crushing effect (+5). 00333_ Slammed into as-85656. 00334_ Acquired 3 matter. 00334_ Lgt. Ion Engine destroyed. 00334_ System corrupted by crushing effect (+2). Map ----- +----------------------------------------------------+ | ??????????????????????????????????? | | ??????????????????????????????????? | | ??????????????????????????????????? | | ??????????????????????????????????? | | ??????????????????????????????????? | | ??????????????????????????????????? | | ??????????????????????????????????? | | ??????????????????????????????????? | | ??????????????????????????????????? | | ??????????????????????????????????? | | ??????????????????????????????????? | | ??????????????????????????????????? | | ??????????????????????????????????? | | ??????????????????????????????????? | | ??????????????????????????????????? | | ??????????????????????????????????? | | ??????????????????????????????????? | | ???????????????#??????????????????? | | ???????????????#; ????????????????? | | ???????????????#